bitfinex/quotes_SOLUSD_20250106
["timestamp","ask_amount","ask_price","bid_price","bid_amount"]
[1736132145533,24.64406914,216.24,216.19,9.01049723]
[1736132146252,23.776884,216.24,216.19,9.01049723]
[1736132146455,24.64406724,216.24,216.19,9.01049723]
[1736132147165,33.65456447,216.24,216.18,9.01049723]
[1736132147338,32.78738123,216.24,216.18,9.01049723]
[1736132147956,23.776884,216.24,216.18,9.01049723]
[1736132148156,9.01049723,216.26,216.19,9.01049723]
[1736132148459,1.5546,216.28,216.21,9.01049723]
[1736132148460,22.4217588,216.28,216.21,9.01049723]
[1736132148639,31.43225603,216.28,216.21,9.01049723]
[1736132148845,23.776884,216.26,216.21,9.01049723]
[1736132149062,24.64398859,216.26,216.21,9.01049723]
[1736132149636,23.776884,216.26,216.21,9.01049723]
[1736132152555,23.776884,216.26,216.2,9.01049723]
[1736132155041,32.78738123,216.26,216.2,9.01049723]
[1736132155336,32.78738123,216.26,216.19,9.01049723]
[1736132155731,32.78738123,216.26,216.2,9.01049723]
[1736132156467,32.78738123,216.24,216.16,0.34576348]
[1736132156666,9.87770751,216.23,216.16,9.01049723]
[1736132157162,32.78738123,216.22,216.15,9.01049723]
[1736132157350,0.86731513,216.21,216.15,9.01049723]
[1736132157553,9.87781236,216.21,216.14,9.01049723]
[1736132158071,0.86731487,216.21,216.15,9.01049723]
[1736132158365,23.776884,216.2,216.12,0.34622284]
[1736132158674,23.776884,216.2,216.14,9.01049723]
[1736132160261,23.776884,216.2,216.11,1.94931206]
[1736132160564,23.776884,216.2,216.15,9.01049723]
[1736132163078,23.776884,216.2,216.14,9.01049723]
[1736132163383,32.78738123,216.2,216.13,9.01049723]
[1736132163977,9.01049723,216.17,216.1,9.01049723]
[1736132164186,9.87799964,216.17,216.1,9.01049723]
[1736132164352,9.87799964,216.17,216.11,9.01049723]
[1736132164353,0.86750241,216.17,216.11,9.01049723]
[1736132164553,0.86750241,216.17,216.12,9.01049723]
[1736132170299,0.86750241,216.17,216.07,0.34659793]
[1736132170593,0.86750241,216.17,216.12,9.01049723]
[1736132170767,0.86750241,216.17,216.11,9.01049723]
[1736132170768,23.776884,216.16,216.11,9.01049723]
[1736132170968,0.86750241,216.17,216.09,9.01049723]
[1736132170969,9.01049723,216.15,216.09,9.01049723]
[1736132171484,9.01049723,216.16,216.09,9.01049723]
[1736132171871,23.776884,216.16,216.1,9.01049723]
[1736132172073,0.86752476,216.17,216.11,9.01049723]
[1736132173599,0.86752476,216.17,216.12,9.01049723]
[1736132173794,43.776884,216.17,216.12,9.01049723]
[1736132173987,43.776884,216.17,216.11,9.01049723]
[1736132174995,52.78738123,216.17,216.11,9.01049723]
[1736132175203,0.86749589,216.16,216.1,9.01049723]
[1736132175914,9.87799312,216.16,216.09,9.01049723]
[1736132176204,9.01049723,216.15,216.08,9.01049723]
[1736132176376,0.8675995,216.14,216.08,9.01049723]
[1736132179919,9.87809673,216.14,216.07,9.01049723]
[1736132182812,23.776884,216.13,216.04,20.0]
[1736132183024,32.78738123,216.13,216.06,9.01049723]
[1736132183200,33.65502713,216.13,216.06,9.01049723]
[1736132184005,24.6445299,216.13,216.07,9.01049723]
[1736132184212,23.776884,216.13,216.09,9.01049723]
[1736132186208,26.3281,216.17,216.12,9.01049723]
[1736132186407,26.3281,216.17,216.04,172.24198892]
[1736132186408,2.42206774,216.2,216.14,9.01049723]
[1736132186709,1.5546,216.2,216.14,9.01049723]
[1736132187127,23.776884,216.2,216.15,9.01049723]
[1736132187326,14.05758435,216.22,216.16,9.01049723]
[1736132187826,6.0016,216.22,216.16,9.01049723]
[1736132188051,0.86729197,216.23,216.17,9.01049723]
[1736132189008,23.776884,216.22,216.17,9.01049723]
[1736132189829,23.776884,216.22,216.16,9.01049723]
[1736132191934,32.78738123,216.22,216.16,9.01049723]
[1736132192320,32.78738123,216.22,216.15,9.01049723]
[1736132192516,11.5615,216.24,216.13,9.01049723]
[1736132192517,32.78738123,216.2,216.13,9.01049723]
[1736132192911,9.01049723,216.19,216.12,9.01049723]
[1736132193237,9.01049723,216.16,216.09,145.21049723]
[1736132193435,0.86734699,216.19,216.1,9.01049723]
[1736132193613,52.78738123,216.18,216.1,9.01049723]
[1736132193940,9.01049723,216.15,216.08,9.01049723]
[1736132194135,9.01049723,216.15,216.04,1.6224]
[1736132194136,23.776884,216.13,216.07,9.01049723]
[1736132194340,33.65500079,216.13,216.06,9.01049723]
[1736132195241,23.776884,216.13,216.07,9.01049723]
[1736132198615,23.776884,216.13,216.05,0.34683736]
[1736132198937,0.86762102,216.12,216.05,9.01049723]
[1736132202054,0.86762102,216.12,216.06,9.01049723]
[1736132202248,24.64455174,216.13,216.07,9.01049723]
[1736132202752,11.5661,216.15,216.09,9.01049723]
[1736132202976,12.43366295,216.15,216.09,9.01049723]
[1736132203176,11.43266018,216.17,216.1,9.01049723]
[1736132203332,23.776884,216.16,216.1,9.01049723]
[1736132203657,23.776884,216.16,216.11,9.01049723]
[1736132204034,0.86748303,216.2,216.13,9.01049723]
[1736132204241,17.06649608,216.21,216.14,9.01049723]
[1736132204453,32.78738123,216.2,216.13,9.01049723]
[1736132204640,33.65476206,216.2,216.13,9.01049723]
[1736132205064,23.776884,216.18,216.13,9.01049723]
[1736132205270,23.776884,216.18,216.12,9.01049723]
[1736132206333,23.776884,216.16,216.11,9.01049723]
[1736132206527,9.01049723,216.15,216.04,1.6224]
[1736132206750,32.78738123,216.16,216.09,9.01049723]
[1736132206949,23.776884,216.16,216.1,9.01049723]
[1736132207183,24.64437125,216.16,216.1,9.01049723]
[1736132207484,33.65486848,216.16,216.09,9.01049723]
[1736132207653,9.01049723,216.14,216.04,1.6224]
[1736132207848,23.776884,216.12,216.06,9.01049723]
[1736132208963,23.776884,216.12,216.07,9.01049723]
[1736132209365,9.87812579,216.14,216.07,9.01049723]
[1736132211181,24.64449121,216.15,216.09,9.01049723]
[1736132211562,33.65498844,216.15,216.08,9.01049723]
[1736132212387,24.64449121,216.15,216.08,9.01049723]
[1736132212998,23.776884,216.15,216.05,0.34685634]
[1736132213282,0.86754941,216.14,216.08,9.01049723]
[1736132214498,32.78738123,216.1,215.97,136.2]
[1736132214704,9.01049723,216.1,216.03,9.01049723]
[1736132215202,9.87825931,216.1,216.03,9.01049723]
[1736132215503,0.86776208,216.1,216.03,9.01049723]
[1736132219407,0.86776208,216.1,216.04,9.01049723]
[1736132220106,9.87825931,216.1,216.04,9.01049723]
[1736132220303,32.78738123,216.08,215.99,0.34711727]
[1736132220503,32.78738123,216.08,215.98,136.2]
[1736132220504,9.01049723,216.05,215.93,1.5901]
[1736132220693,23.776884,216.04,215.98,9.01049723]
[1736132221285,32.78738123,216.04,215.97,9.01049723]
[1736132221880,0.86801194,216.07,215.99,9.01049723]
[1736132222080,9.87850917,216.07,216.0,9.01049723]
[1736132222304,20.0,216.04,215.99,9.01049723]
[1736132222607,23.776884,216.03,215.98,9.01049723]
[1736132222809,0.86802158,216.03,215.99,9.01049723]
[1736132222991,0.86802158,216.07,216.01,9.01049723]
[1736132223711,0.86802158,216.07,215.94,0.34752318]
[1736132223712,23.776884,216.06,216.0,9.01049723]
[1736132223886,23.776884,216.06,216.01,9.01049723]
[1736132224288,23.776884,216.06,216.0,9.01049723]
[1736132224587,23.776884,216.04,216.0,9.01049723]
[1736132225106,9.01049723,216.02,215.94,136.2]
[1736132225412,23.776884,216.0,215.96,9.01049723]
[1736132225595,23.776884,216.0,215.97,9.01049723]
[1736132225797,23.776884,216.02,215.97,9.01049723]
[1736132226108,9.01049723,216.05,215.98,9.01049723]
[1736132226298,9.87845591,216.05,215.98,9.01049723]
[1736132226501,23.776884,216.04,215.98,9.01049723]
[1736132227313,23.776884,216.04,215.92,20.0]
[1736132227503,23.776884,216.02,215.97,9.01049723]
[1736132228315,23.776884,216.0,215.91,0.34769678]
[1736132228506,23.776884,216.0,215.94,9.01049723]
[1736132231118,23.776884,215.98,215.94,9.01049723]
[1736132231714,23.776884,215.98,215.9,136.2]
[1736132231913,23.776884,215.98,215.93,9.01049723]
[1736132232421,23.776884,216.0,215.95,9.01049723]
[1736132234629,32.78738123,215.98,215.87,0.34791645]
[1736132234894,23.776884,215.96,215.92,9.01049723]
[1736132235118,23.776884,215.96,215.93,9.01049723]
[1736132235323,23.776884,215.97,215.93,9.01049723]
[1736132236628,23.776884,215.98,215.93,9.01049723]
[1736132238033,23.776884,215.98,215.95,9.01049723]
[1736132238205,0.8681365,216.01,215.95,9.01049723]
[1736132239336,23.776884,216.0,215.94,9.01049723]
[1736132239632,23.776884,215.98,215.93,9.01049723]
[1736132240226,0.86825524,215.97,215.93,9.01049723]
[1736132240426,23.776884,215.98,215.92,9.01049723]
[1736132240931,25.331484,215.98,215.89,0.34796363]
[1736132241139,23.776884,215.92,215.84,0.34810379]
[1736132241433,23.776884,215.92,215.86,9.01049723]
[1736132242034,32.78738123,215.94,215.87,9.01049723]
[1736132242531,33.65579489,215.94,215.87,9.01049723]
[1736132243235,24.64529766,215.94,215.89,9.01049723]
[1736132243431,23.776884,215.94,215.89,9.01049723]
[1736132243630,23.776884,215.92,215.89,9.01049723]
[1736132244006,23.776884,215.94,215.88,9.01049723]
[1736132244227,23.776884,215.92,215.88,9.01049723]
[1736132244433,23.776884,215.92,215.87,9.01049723]
[1736132244628,23.776884,215.92,215.86,9.01049723]
[1736132245453,23.776884,215.9,215.86,9.01049723]
[1736132246237,23.776884,215.9,215.85,9.01049723]
[1736132246755,23.776884,215.9,215.84,9.01049723]
[1736132247434,23.776884,215.88,215.84,9.01049723]
[1736132247761,0.8685855,215.91,215.84,9.01049723]
[1736132248075,9.87902152,215.92,215.85,9.01049723]
[1736132248254,23.776884,215.91,215.85,9.01049723]
[1736132248834,32.78738123,215.91,215.84,9.01049723]
[1736132249048,32.78738123,215.89,215.8,0.34859436]
[1736132249355,23.776884,215.89,215.83,9.01049723]
[1736132249546,24.64548893,215.89,215.83,9.01049723]
[1736132250578,24.64548893,215.89,215.82,9.01049723]
[1736132250853,0.86860493,215.89,215.86,9.01049723]
[1736132251056,1.89376025,215.99,215.87,9.01049723]
[1736132251057,9.01049723,215.94,215.87,9.01049723]
[1736132251259,0.86845587,215.93,215.87,9.01049723]
[1736132251429,23.776884,215.92,215.87,9.01049723]
[1736132252238,23.776884,215.92,215.86,9.01049723]
[1736132254459,23.776884,215.92,215.87,9.01049723]
[1736132254629,9.01049723,215.95,215.88,9.01049723]
[1736132254830,0.86840771,215.94,215.88,9.01049723]
[1736132256064,0.86840789,215.96,215.9,9.01049723]
[1736132256275,29.01049723,215.97,215.9,9.01049723]
[1736132256738,23.776884,215.96,215.9,9.01049723]
[1736132256935,29.01049723,215.97,215.9,9.01049723]
[1736132257138,9.01049723,215.96,215.89,9.01049723]
[1736132257533,23.776884,215.95,215.89,9.01049723]
[1736132257767,33.6557038,215.95,215.88,9.01049723]
[1736132258141,33.6557038,215.95,215.85,0.34839968]
[1736132258362,23.776884,215.93,215.83,6.2089]
[1736132258672,23.776884,215.91,215.86,9.01049723]
[1736132258964,23.776884,215.92,215.87,9.01049723]
[1736132259970,23.776884,215.93,215.88,9.01049723]
[1736132261962,23.776884,215.93,215.83,6.55746542]
[1736132262140,9.87892099,215.92,215.85,9.01049723]
[1736132262340,23.776884,215.86,215.79,1.54]
[1736132262542,24.64561959,215.86,215.8,9.01049723]
[1736132264059,33.65611682,215.86,215.79,10.55049723]
[1736132264262,23.776884,215.84,215.79,10.55049723]
[1736132265151,9.01049723,215.86,215.79,10.55049723]
[1736132265350,9.01049723,215.87,215.8,9.01049723]
[1736132265568,23.776884,215.85,215.8,9.01049723]
[1736132266287,32.78738123,215.85,215.79,9.01049723]
[1736132267264,23.776884,215.85,215.79,9.01049723]
[1736132268082,23.776884,215.86,215.8,9.01049723]
[1736132268250,24.64562776,215.86,215.8,9.01049723]
[1736132269086,33.65612499,215.86,215.79,9.01049723]
[1736132269984,24.64562776,215.86,215.8,9.01049723]
[1736132270174,33.65612499,215.86,215.8,9.01049723]
[1736132272885,9.01049723,215.85,215.79,9.01049723]
[1736132273082,23.776884,215.83,215.79,9.01049723]
[1736132274286,23.776884,215.84,215.79,9.01049723]
[1736132274488,24.64567652,215.84,215.79,9.01049723]
[1736132275490,24.64567652,215.84,215.8,9.01049723]
[1736132275789,23.776884,215.84,215.8,9.01049723]
[1736132277380,0.86878997,215.85,215.81,9.01049723]
[1736132277584,9.01049723,215.87,215.81,9.01049723]
[1736132278190,23.776884,215.85,215.81,9.01049723]
[1736132279501,23.776884,215.85,215.8,9.01049723]
[1736132284198,9.01049723,215.82,215.73,144.236]
[1736132284401,9.01049723,215.81,215.75,9.01049723]
[1736132286082,9.01049723,215.82,215.76,9.01049723]
[1736132287070,23.776884,215.82,215.77,9.01049723]
[1736132287489,23.776884,215.82,215.74,0.34928644]
[1736132287679,23.776884,215.82,215.77,9.01049723]
[1736132292097,23.776884,215.82,215.76,9.01049723]
[1736132292903,23.776884,215.82,215.77,9.01049723]
[1736132293194,32.78738123,215.83,215.77,9.01049723]
[1736132295096,23.776884,215.84,215.78,9.01049723]
[1736132295296,0.86884095,215.83,215.78,9.01049723]
[1736132297102,0.86883341,215.84,215.78,9.01049723]
[1736132297285,0.86883341,215.84,215.74,0.34928644]
[1736132297489,0.86883341,215.84,215.78,9.01049723]
[1736132299202,0.86883341,215.84,215.82,0.11086158]
[1736132301413,24.64571149,215.85,215.82,0.11086158]
[1736132301712,23.776884,215.85,215.82,0.11086158]
[1736132302697,0.86876423,215.84,215.82,0.11086158]
[1736132304112,9.87926146,215.84,215.82,0.11086158]
[1736132304618,0.86876423,215.84,215.82,0.11086158]
[1736132306011,23.776884,215.83,215.82,0.11086158]
[1736132308322,0.86880783,215.85,215.82,0.11086158]
[1736132308512,7.18867031,215.88,215.84,9.01049723]
[1736132309013,24.64547211,215.87,215.82,9.12135881]
[1736132309221,0.86858811,215.87,215.82,9.12135881]
[1736132309711,0.86858811,215.87,215.82,0.11086158]
[1736132309910,23.776884,215.85,215.82,0.11086158]
[1736132310110,0.86879304,215.84,215.82,0.11086158]
[1736132310311,23.776884,215.83,215.82,0.11086158]
[1736132311120,23.776884,215.84,215.82,0.11086158]
[1736132311920,7.18867031,215.87,215.83,9.01049723]
[1736132312110,23.776884,215.86,215.82,9.12135881]
[1736132312819,24.64555296,215.86,215.82,0.11086158]
[1736132313822,23.776884,215.86,215.82,0.11086158]
[1736132314127,23.776884,215.84,215.82,0.11086158]
[1736132315034,23.776884,215.86,215.82,0.11086158]
[1736132315333,8.05742589,215.87,215.82,0.11086158]
[1736132315334,23.776884,215.84,215.82,0.11086158]
[1736132319524,7.18867031,215.87,215.83,9.01049723]
[1736132319734,7.18867031,215.87,215.84,9.01049723]
[1736132321033,23.776884,215.87,215.83,9.01049723]
[1736132321405,23.776884,215.87,215.82,0.11086158]
[1736132321406,23.776884,215.88,215.84,9.01049723]
[1736132321736,0.86859225,215.87,215.82,0.11086158]
[1736132322118,0.86859225,215.87,215.82,9.12135881]
[1736132322729,7.18867031,215.89,215.85,9.01049723]
[1736132322914,7.18867031,215.89,215.87,9.01049723]
[1736132323113,7.18867031,215.89,215.86,9.01049723]
[1736132323548,23.776884,215.9,215.86,9.01049723]
[1736132323723,23.776884,215.9,215.85,9.01049723]
[1736132324730,23.776884,215.9,215.84,9.01049723]
[1736132325942,9.87904411,215.91,215.84,9.01049723]
[1736132326241,0.86854688,215.91,215.86,9.01049723]
[1736132326419,24.64540887,215.92,215.85,9.01049723]
[1736132326619,24.64540887,215.92,215.86,9.01049723]
[1736132327851,24.64540887,215.92,215.87,9.01049723]
[1736132328030,23.776884,215.92,215.87,9.01049723]
[1736132328218,23.776884,215.92,215.86,9.01049723]
[1736132331153,23.776884,215.93,215.87,9.01049723]
[1736132333954,23.776884,215.93,215.86,9.01049723]
[1736132335824,23.776884,215.93,215.87,9.01049723]
[1736132337754,0.86845263,215.94,215.88,9.01049723]
[1736132337958,23.776884,215.91,215.82,0.11086158]
[1736132338257,23.776884,215.9,215.85,9.01049723]
[1736132340942,23.776884,215.91,215.85,9.01049723]
[1736132342063,23.776884,215.91,215.86,9.01049723]
[1736132343664,23.776884,215.91,215.85,9.01049723]
[1736132344229,9.01049723,215.88,215.82,0.11086158]
[1736132344432,9.87920156,215.87,215.82,0.11086158]
[1736132344776,32.78738123,215.85,215.82,0.11086158]
[1736132345076,0.86881657,215.84,215.82,0.11086158]
[1736132345560,32.78738123,215.85,215.82,0.11086158]
[1736132345735,0.86877477,215.84,215.82,0.11086158]
[1736132346263,32.78738123,215.86,215.82,0.11086158]
[1736132346565,0.8687747,215.85,215.82,0.11086158]
[1736132346933,24.64564468,215.86,215.82,0.11086158]
[1736132348065,33.65614191,215.86,215.82,0.11086158]
[1736132348229,9.01049723,215.85,215.82,0.11086158]
[1736132348426,0.86880398,215.84,215.82,0.11086158]
[1736132348840,0.86880244,215.85,215.82,0.11086158]
[1736132349962,0.86875994,215.86,215.82,0.11086158]
[1736132350332,9.87925717,215.86,215.82,0.11086158]
[1736132350661,9.01049723,215.85,215.82,0.11086158]
[1736132350851,0.86880615,215.84,215.82,0.11086158]
[1736132351050,32.78738123,215.83,215.82,0.11086158]
[1736132351253,0.86880615,215.84,215.82,0.11086158]
[1736132361843,23.776884,215.83,215.82,0.11086158]
[1736132362240,23.776884,215.83,215.82,6.158e-05]
[1736132362241,32.78738123,215.83,215.82,6.158e-05]
[1736132363350,32.78738123,215.83,215.72,9.01049723]
[1736132363351,9.01049723,215.78,215.72,9.01049723]
[1736132363544,23.776884,215.76,215.72,9.01049723]
[1736132363740,0.86915407,215.75,215.72,9.01049723]
[1736132364041,23.776884,215.76,215.72,9.01049723]
[1736132364263,0.86915182,215.75,215.65,1.5349]
[1736132364490,0.86915182,215.75,215.7,9.01049723]
[1736132364972,0.86915182,215.75,215.69,9.01049723]
[1736132366279,0.86915182,215.75,215.7,9.01049723]
[1736132367082,23.776884,215.74,215.65,1.5349]
[1736132367264,0.86926787,215.73,215.67,9.01049723]
[1736132367574,0.86926787,215.73,215.68,9.01049723]
[1736132368878,0.86926787,215.73,215.69,9.01049723]
[1736132369058,0.86926787,215.73,215.7,9.01049723]
[1736132371061,0.86926787,215.73,215.65,1.5349]
[1736132371262,0.86926787,215.73,215.7,9.01049723]
[1736132374353,23.776884,215.75,215.7,9.01049723]
[1736132374572,0.86928442,215.74,215.7,9.01049723]
[1736132376201,0.86928442,215.74,215.69,9.01049723]
[1736132379267,0.86928442,215.74,215.71,9.01049723]
[1736132379528,24.64612637,215.75,215.65,2.19209545]
[1736132379713,0.86915985,215.77,215.74,9.01049723]
[1736132380073,0.86908602,215.8,215.76,9.01049723]
[1736132380273,27.85114914,215.84,215.78,9.01049723]
[1736132380579,18.84065191,215.84,215.78,9.01049723]
[1736132380893,11.25049723,215.85,215.78,9.01049723]
[1736132381095,0.86887278,215.84,215.78,9.01049723]
[1736132381281,11.25049723,215.85,215.78,9.01049723]
[1736132381482,0.86889412,215.84,215.78,9.01049723]
[1736132381681,11.25049723,215.85,215.78,9.01049723]
[1736132381910,29.87940295,215.84,215.78,9.01049723]
[1736132382201,29.01049723,215.84,215.78,9.01049723]
[1736132382404,23.776884,215.83,215.78,9.01049723]
[1736132384112,9.01049723,215.86,215.8,9.01049723]
[1736132384283,0.86884514,215.85,215.8,9.01049723]
[1736132384487,0.86884563,215.84,215.8,9.01049723]
[1736132386014,23.776884,215.85,215.8,9.01049723]
[1736132386218,0.86885368,215.84,215.8,9.01049723]
[1736132386516,23.776884,215.85,215.74,6.84816902]
[1736132386810,23.776884,215.82,215.76,9.01049723]
[1736132386981,0.86895252,215.81,215.74,6.1917]
[1736132387177,0.86895252,215.81,215.76,9.01049723]
[1736132387712,0.86895252,215.81,215.73,1.5716]
[1736132387884,23.776884,215.8,215.74,9.01049723]
[1736132388084,0.86902767,215.79,215.74,9.01049723]
[1736132390895,0.86902767,215.79,215.73,10.58209723]
[1736132395527,32.78738123,215.78,215.71,9.01049723]
[1736132395690,0.86916802,215.77,215.71,9.01049723]
[1736132395891,23.776884,215.76,215.68,1.5759]
[1736132396189,0.86921331,215.75,215.71,9.01049723]
[1736132400220,0.86921331,215.75,215.7,9.01049723]
[1736132400403,0.86921331,215.75,215.68,1.5759]
[1736132400404,9.87971054,215.75,215.68,1.5759]
[1736132400604,0.86921331,215.75,215.69,9.01049723]
[1736132401018,0.86921331,215.75,215.7,9.01049723]
[1736132401219,23.776884,215.74,215.7,9.01049723]
[1736132401422,0.86925038,215.73,215.7,9.01049723]
[1736132401819,0.86924765,215.75,215.7,9.01049723]
[1736132402121,0.86924765,215.75,215.71,9.01049723]
[1736132402495,0.86920276,215.77,215.73,9.01049723]
[1736132402701,0.86907659,215.8,215.73,9.01049723]
[1736132402917,0.86907659,215.8,215.75,9.01049723]
[1736132403322,0.86907659,215.8,215.76,9.01049723]
[1736132404324,0.86896897,215.81,215.76,9.01049723]
[1736132406027,0.86896897,215.81,215.75,9.01049723]
[1736132407327,9.01049723,215.79,215.7,0.65664845]
[1736132407639,0.86908448,215.78,215.73,9.01049723]
[1736132407814,0.86906001,215.79,215.75,9.01049723]
[1736132407994,0.86901407,215.83,215.75,9.01049723]
[1736132408332,23.776884,215.81,215.75,9.01049723]
[1736132408523,0.86895859,215.8,215.75,9.01049723]
[1736132408713,0.86895859,215.8,215.74,9.01049723]
[1736132409035,9.87945582,215.8,215.74,9.01049723]
[1736132410239,0.86895859,215.8,215.75,9.01049723]
[1736132411314,23.776884,215.75,215.68,1.5759]
[1736132411518,9.87971815,215.74,215.68,1.5759]
[1736132411717,9.01049723,215.73,215.68,1.5759]
[1736132412116,9.87972571,215.72,215.64,6.0448]
[1736132412425,9.87972571,215.72,215.57,5.0]
[1736132412426,9.01049723,215.68,215.58,1.5009]
[1736132412625,9.01049723,215.66,215.58,1.5009]
[1736132412813,0.86953451,215.65,215.59,9.01049723]
[1736132413009,9.88003174,215.65,215.58,1.5009]
[1736132413215,9.88003174,215.65,215.58,10.51139723]
[1736132414713,0.86953451,215.65,215.59,9.01049723]
[1736132414910,0.8696052,215.7,215.6,0.65792111]
[1736132415141,0.8696052,215.7,215.64,9.01049723]
[1736132415443,9.88010243,215.7,215.63,9.01049723]
[1736132415741,0.8696052,215.7,215.65,9.01049723]
[1736132416424,9.88010243,215.7,215.64,9.01049723]
[1736132418746,9.01049723,215.69,215.63,9.01049723]
[1736132419038,0.86943974,215.68,215.62,9.01049723]
[1736132420844,32.78738123,215.67,215.61,9.01049723]
[1736132421055,0.8695629,215.66,215.61,9.01049723]
[1736132421849,0.8695629,215.66,215.6,9.01049723]
[1736132422053,32.78738123,215.65,215.52,144.3195]
[1736132422357,0.86967799,215.64,215.58,9.01049723]
[1736132422729,0.86967799,215.64,215.59,9.01049723]
[1736132423545,0.86967799,215.64,215.6,9.01049723]
[1736132423724,0.86956208,215.65,215.61,9.01049723]
[1736132424653,0.86957233,215.66,215.56,0.65800838]
[1736132424950,0.86957233,215.66,215.6,9.01049723]
[1736132425451,9.88006956,215.66,215.6,9.01049723]
[1736132426347,9.88006956,215.66,215.59,9.01049723]
[1736132427255,23.776884,215.65,215.59,9.01049723]
[1736132427433,0.86962791,215.64,215.59,9.01049723]
[1736132428954,0.86962791,215.64,215.58,9.01049723]
[1736132429454,23.776884,215.6,215.51,136.2]
[1736132429754,0.86983003,215.59,215.54,9.01049723]
[1736132429953,0.86983003,215.59,215.47,147.8022]
[1736132429954,0.86983003,215.59,215.53,9.01049723]
[1736132430329,0.86983003,215.59,215.54,9.01049723]
[1736132430529,24.6467138,215.6,215.54,9.01049723]
[1736132430760,33.65721103,215.6,215.53,9.01049723]
[1736132430939,23.776884,215.59,215.53,9.01049723]
[1736132431149,0.86990056,215.58,215.53,9.01049723]
[1736132432167,0.86990056,215.58,215.48,20.0]
[1736132432476,0.86990056,215.58,215.53,9.01049723]
[1736132433951,0.86990056,215.58,215.48,20.65845311]
[1736132434157,0.86990056,215.58,215.52,9.01049723]
[1736132434965,9.01049723,215.6,215.54,9.01049723]
[1736132435169,0.86984872,215.59,215.54,9.01049723]
[1736132436879,0.86984872,215.59,215.56,9.01049723]
[1736132437176,0.86980988,215.61,215.56,9.01049723]
[1736132438368,0.86980988,215.61,215.5,136.85833048]
[1736132438561,0.86969551,215.6,215.56,9.01049723]
[1736132439370,23.776884,215.59,215.46,136.2]
[1736132439663,0.86994337,215.58,215.53,9.01049723]
[1736132440880,0.86994337,215.58,215.54,9.01049723]
[1736132441371,0.86994337,215.58,215.53,9.01049723]
[1736132442274,0.86994337,215.58,215.54,9.01049723]
[1736132442642,23.776884,215.59,215.49,136.2]
[1736132442643,0.8698662,215.59,215.49,136.2]
[1736132442949,9.01049723,215.62,215.55,9.01049723]
[1736132443168,23.776884,215.6,215.49,36.04198892]
[1736132443343,0.86983855,215.61,215.57,9.01049723]
[1736132443344,0.86990529,215.61,215.57,9.01049723]
[1736132443542,0.86990529,215.61,215.56,9.01049723]
[1736132443963,0.86990529,215.61,215.5,0.6585213]
[1736132444142,0.86990529,215.61,215.55,9.01049723]
[1736132444470,0.86990529,215.61,215.56,9.01049723]
[1736132447270,0.86990529,215.61,215.55,9.01049723]
[1736132448069,0.86990529,215.61,215.5,0.6585213]
[1736132448263,0.86990529,215.61,215.55,9.01049723]
[1736132448880,32.78738123,215.6,215.49,136.2]
[1736132449087,23.776884,215.58,215.49,136.2]
[1736132449384,0.86991806,215.57,215.52,9.01049723]
[1736132449544,0.86991806,215.57,215.53,9.01049723]
[1736132452183,0.86991806,215.57,215.54,9.01049723]
[1736132453092,0.86991806,215.57,215.53,9.01049723]
[1736132454067,0.86992309,215.59,215.53,9.01049723]
[1736132455777,0.86992309,215.59,215.52,9.01049723]
[1736132456155,9.88042032,215.59,215.52,9.01049723]
[1736132456656,0.86992309,215.59,215.53,9.01049723]
[1736132458279,23.776884,215.58,215.52,9.01049723]
[1736132458464,0.86995371,215.57,215.51,9.01049723]
[1736132459879,0.86995371,215.57,215.52,9.01049723]
[1736132460680,0.86995371,215.57,215.51,9.01049723]
[1736132462259,0.86994197,215.6,215.54,9.01049723]
[1736132464393,0.86994197,215.6,215.55,9.01049723]
[1736132464868,23.776884,215.59,215.53,9.01049723]
[1736132465064,0.86988871,215.58,215.47,0.65835333]
[1736132465269,0.86988871,215.58,215.52,9.01049723]
[1736132467307,9.01049723,215.57,215.46,136.2]
[1736132467603,0.87000447,215.56,215.5,9.01049723]
[1736132467904,9.8805017,215.56,215.49,9.01049723]
[1736132468404,9.8805017,215.56,215.5,9.01049723]
[1736132470806,23.776884,215.55,215.5,9.01049723]
[1736132471100,9.88052744,215.54,215.47,9.01049723]
[1736132471483,32.78738123,215.53,215.41,136.2]
[1736132471801,9.88063794,215.52,215.46,9.01049723]
[1736132472108,9.01049723,215.51,215.45,9.01049723]
[1736132472314,0.87020665,215.5,215.45,9.01049723]
[1736132473302,9.01049723,215.49,215.41,136.2]
[1736132473610,9.88074208,215.48,215.41,9.01049723]
[1736132474000,9.01049723,215.47,215.41,9.01049723]
[1736132474320,9.01049723,215.45,215.35,1.5925]
[1736132474482,0.87044065,215.44,215.39,9.01049723]
[1736132474687,20.0,215.46,215.42,9.01049723]
[1736132475204,0.87042905,215.48,215.43,9.01049723]
[1736132475401,9.88083861,215.5,215.43,9.01049723]
[1736132475899,0.87034138,215.5,215.46,9.01049723]